bitfinex/quotes_ETHUSD_20251028
["timestamp","ask_amount","ask_price","bid_price","bid_amount"]
[1761685541755,0.4444,3976.5,3976.1,2.51497571]
[1761685542078,0.4444,3976.5,3975.9,4.82214005]
[1761685542277,1e-08,3976.7,3976.6,2.51471105]
[1761685542439,0.44440001,3976.7,3974.5,1.78712897]
[1761685542639,1.5552,3976.4,3975.6,2.51534111]
[1761685542839,1.5552,3976.4,3974.9,2.51578622]
[1761685542840,1.5552,3976.5,3975.8,2.51521706]
[1761685543073,1.5552,3976.5,3975.7,2.307]
[1761685543074,0.4444,3976.4,3975.7,4.82226552]
[1761685543262,0.2263,3975.9,3975.7,2.307]
[1761685543763,0.4444,3975.8,3975.7,2.307]
[1761685543964,0.4444,3975.8,3975.7,4.82228032]
[1761685544169,0.2263,3975.9,3975.8,2.51521706]
[1761685544877,0.2263,3975.9,3975.7,4.82226844]
[1761685545451,0.6707,3975.9,3975.7,2.307]
[1761685545970,0.4444,3975.8,3975.7,2.307]
[1761685547205,0.4444,3975.8,3974.6,0.002]
[1761685547206,1.5552,3975.7,3974.6,0.002]
[1761685547408,2.51528032,3975.7,3974.6,0.002]
[1761685547571,1.6808,3975.1,3974.6,0.002]
[1761685547770,1.6808,3975.1,3974.7,2.31]
[1761685548102,0.4444,3975.0,3974.7,2.31]
[1761685549711,0.1256,3975.1,3975.0,2.51572327]
[1761685550010,0.2263,3975.9,3975.0,0.1256]
[1761685550209,0.1256,3976.2,3975.7,2.51523121]
[1761685550507,1.7815,3975.8,3975.0,2.31]
[1761685550694,2.51528032,3975.7,3974.2,0.002]
[1761685551007,1.5552,3975.0,3974.3,2.51612321]
[1761685551210,1.5552,3975.0,3974.7,2.271]
[1761685551389,0.4444,3974.9,3974.7,2.271]
[1761685551592,2.96019083,3974.9,3974.7,2.271]
[1761685551786,0.4444,3974.9,3974.7,2.271]
[1761685551986,0.4444,3974.8,3974.7,2.271]
[1761685552899,2.96024985,3974.8,3974.7,2.271]
[1761685553111,1.5552,3975.1,3974.7,2.271]
[1761685553492,0.4444,3975.0,3974.7,2.271]
[1761685554518,1.9996,3975.0,3974.6,0.002]
[1761685554877,0.4444,3974.9,3974.6,0.002]
[1761685555118,4.07086359,3975.1,3974.6,0.002]
[1761685555311,0.4444,3975.0,3974.6,0.002]
[1761685555693,0.4444,3975.0,3974.6,2.517962]
[1761685555893,0.4444,3975.0,3974.6,0.002]
[1761685556318,1.5552,3975.2,3974.6,0.002]
[1761685556508,0.4444,3975.6,3974.7,4.82389729]
[1761685556703,2.95974817,3975.6,3974.8,2.51579614]
[1761685556884,1.5552,3975.5,3974.8,2.51579614]
[1761685557078,1.5552,3975.5,3974.9,2.51577718]
[1761685557727,1.9996,3975.6,3975.0,2.51566544]
[1761685557934,1.9996,3975.6,3975.1,2.305]
[1761685558088,0.2263,3975.8,3975.2,2.51555508]
[1761685558284,0.4444,3975.7,3975.1,2.305]
[1761685558811,2.51541355,3975.5,3975.1,2.305]
[1761685559336,0.4444,3975.4,3975.1,2.305]
[1761685559688,1.5552,3975.6,3975.1,2.305]
[1761685560088,0.4444,3975.5,3975.1,2.305]
[1761685560387,3.08541352,3975.5,3975.1,2.305]
[1761685560725,1.5552,3975.4,3975.1,2.305]
[1761685561018,0.57,3975.5,3975.1,2.305]
[1761685561221,0.4444,3976.2,3975.6,2.51533932]
[1761685561428,0.1256,3976.1,3975.7,2.303]
[1761685561638,1e-08,3976.7,3975.7,2.303]
[1761685561639,2.95913166,3976.6,3975.7,4.81827698]
[1761685561796,0.1256,3976.4,3975.8,2.51517125]
[1761685561998,1.6808,3976.4,3975.8,2.51517125]
[1761685562195,0.57,3976.4,3975.7,2.4286]
[1761685562411,3.08485848,3976.4,3975.7,4.94386196]
[1761685562610,0.57,3976.4,3975.8,2.51520415]
[1761685563147,0.57,3976.4,3975.9,2.51514387]
[1761685563636,0.1256,3976.4,3975.7,2.4286]
[1761685563794,0.1256,3976.4,3975.7,0.1256]
[1761685563795,0.2263,3975.8,3975.7,0.1256]
[1761685563998,0.2263,3975.8,3975.0,0.1256]
[1761685563999,0.1256,3975.7,3975.0,0.1256]
[1761685564220,0.1256,3975.7,3974.6,0.002]
[1761685564221,0.1256,3975.5,3975.1,1.917]
[1761685564428,1.6808,3975.5,3975.1,1.917]
[1761685564631,3.08546906,3975.5,3975.1,1.917]
[1761685564935,0.2263,3975.8,3975.0,2.302]
[1761685564936,2.51560393,3975.2,3975.0,2.302]
[1761685565435,0.4444,3975.1,3975.0,2.302]
[1761685565598,2.51553565,3975.3,3975.0,2.302]
[1761685565803,2.51559669,3975.2,3975.0,2.302]
[1761685566098,0.4444,3975.6,3975.0,2.302]
[1761685566303,1.5552,3975.4,3974.6,2.303]
[1761685566535,1.5552,3974.8,3974.6,2.303]
[1761685566835,2.51591315,3974.7,3974.6,2.303]
[1761685567033,2.96031315,3974.7,3974.6,2.303]
[1761685567333,2.96031315,3974.7,3974.6,0.002]
[1761685568434,0.4444,3974.7,3974.6,0.002]
[1761685568806,0.4444,3975.4,3974.7,2.51586553]
[1761685569005,1.5552,3975.2,3974.6,0.002]
[1761685569333,1.5552,3975.2,3974.6,2.51791824]
[1761685569535,1.5552,3975.3,3974.7,2.51590162]
[1761685570038,4.07073387,3975.3,3974.6,2.51795609]
[1761685570238,2.51559669,3975.2,3974.6,0.002]
[1761685570398,2.51591315,3974.7,3974.6,0.002]
[1761685570600,4.50831315,3974.7,3974.6,0.002]
[1761685571010,1.5552,3974.7,3974.6,0.002]
[1761685571229,4.07111315,3974.7,3974.6,0.002]
[1761685571405,1.9924,3974.7,3974.6,0.002]
[1761685571740,1.5552,3975.5,3974.6,0.002]
[1761685571938,2.51564271,3975.2,3974.6,0.002]
[1761685572134,2.51566658,3975.1,3974.6,0.002]
[1761685572340,0.4372,3975.3,3974.6,0.002]
[1761685572525,0.4372,3975.2,3974.6,0.002]
[1761685572728,2.51591315,3974.7,3974.6,0.002]
[1761685572928,4.07111315,3974.7,3974.6,0.002]
[1761685573239,4.50831315,3974.7,3974.6,0.002]
[1761685576144,1.5552,3974.7,3974.6,0.002]
[1761685576544,4.50831315,3974.7,3974.6,0.002]
[1761685577555,1.5552,3974.7,3974.6,0.002]
[1761685577918,1.9924,3974.7,3974.6,0.002]
[1761685578118,1.6808,3974.7,3974.6,0.002]
[1761685579148,0.4372,3975.6,3974.6,2.51797645]
[1761685579438,0.4372,3975.6,3974.7,2.51589793]
[1761685579439,0.1256,3975.2,3974.7,2.51589793]
[1761685580005,0.1256,3975.2,3974.7,2.51586688]
[1761685581836,0.1256,3975.2,3974.8,2.51583221]
[1761685582147,0.1256,3975.2,3974.7,2.51589117]
[1761685582443,0.1256,3975.2,3974.9,2.51573298]
[1761685582652,0.1256,3975.2,3975.0,2.295]
[1761685582948,0.1256,3975.5,3975.2,2.51558255]
[1761685583109,0.1256,3975.7,3975.4,2.51545895]
[1761685584160,0.1256,3975.7,3975.2,2.51559669]
[1761685584349,0.1256,3975.7,3975.3,2.51552664]
[1761685584556,2.64090522,3975.7,3975.2,0.86248027]
[1761685584868,0.1256,3975.7,3975.1,0.1931]
[1761685585034,0.1256,3975.7,3975.4,2.51542434]
[1761685585666,0.1256,3975.7,3975.6,2.51534359]
[1761685585874,1.9924,3976.4,3975.5,0.02515406]
[1761685585875,0.1256,3976.0,3975.7,2.51525149]
[1761685586165,0.1256,3976.0,3975.5,2.294]
[1761685586572,1.6808,3976.0,3975.5,2.294]
[1761685587064,0.1256,3976.0,3975.6,2.51529874]
[1761685587272,0.2269,3975.9,3975.3,2.64108392]
[1761685587572,1.7821,3975.9,3975.4,2.294]
[1761685587868,0.1256,3976.0,3975.5,2.51540686]
[1761685588071,0.1256,3976.0,3975.6,2.51533519]
[1761685588367,0.1256,3976.0,3975.6,2.51530295]
[1761685588563,0.1256,3976.0,3975.4,2.294]
[1761685588935,0.1256,3976.0,3975.5,2.51540294]
[1761685589265,2.64069662,3976.0,3975.4,2.294]
[1761685589567,3.1792625,3975.9,3975.2,2.294]
[1761685589752,2.51530134,3975.7,3975.2,2.294]
[1761685590064,2.95255008,3975.6,3975.2,2.294]
[1761685590276,0.4372,3975.6,3975.2,2.294]
[1761685590568,0.4372,3975.5,3975.2,2.294]
[1761685591366,2.95261606,3975.5,3975.2,2.294]
[1761685591576,0.4372,3975.5,3975.2,2.294]
[1761685591762,0.4372,3975.4,3974.9,2.294]
[1761685591962,2.51553386,3975.3,3974.9,2.294]
[1761685592566,2.51561261,3975.2,3974.9,2.294]
[1761685592771,2.95281261,3975.2,3974.9,2.294]
[1761685593140,2.95281261,3975.2,3974.6,0.002]
[1761685593141,4.07111315,3974.7,3974.6,0.002]
[1761685593558,4.50831315,3974.7,3974.6,0.002]
[1761685597870,1.9924,3974.7,3974.6,0.002]
[1761685598065,1.5552,3974.7,3974.6,0.002]
[1761685598269,4.07111315,3974.7,3974.6,0.002]
[1761685598679,4.50831315,3974.7,3974.6,0.002]
[1761685599782,1.9924,3974.7,3974.6,0.002]
[1761685600086,4.50831315,3974.7,3974.6,0.002]
[1761685600988,1.5552,3974.7,3974.6,0.002]
[1761685601888,0.4488,3975.1,3974.6,0.1276]
[1761685602057,3.09012327,3975.0,3974.6,0.002]
[1761685602257,2.64132327,3975.0,3974.6,0.002]
[1761685602488,0.1256,3975.0,3974.6,0.002]
[1761685602725,2.6413299,3975.0,3974.6,0.002]
[1761685603270,3.0901299,3975.0,3974.6,0.002]
[1761685603872,2.51578806,3974.9,3974.6,0.002]
[1761685604063,3.09012783,3975.0,3974.6,0.002]
[1761685604562,2.51579995,3974.9,3974.6,0.002]
[1761685605292,4.07111315,3974.7,3974.6,0.002]
[1761685606488,4.51991315,3974.7,3974.6,0.002]
[1761685607004,4.47680705,3974.4,3974.3,0.002]
[1761685607203,21.75787197,3974.4,3974.3,0.002]
[1761685607366,22.20667197,3974.4,3974.3,0.002]
[1761685613137,2.73279445,3973.7,3971.7,1.78712897]
[1761685613412,4.07212632,3973.1,3971.5,0.4553]
[1761685613598,6.36612632,3973.1,3971.5,0.4553]
[1761685613795,6.36612632,3973.1,3971.7,2.51776403]
[1761685613796,6.81492632,3973.1,3971.7,2.51776403]
[1761685614110,6.81492632,3973.1,3971.5,0.4553]
[1761685614273,1.5552,3973.1,3972.6,0.1926]
[1761685614474,1.5552,3973.2,3972.6,0.6479]
[1761685614798,4.07201832,3973.3,3972.6,0.6479]
[1761685614975,1.5552,3973.3,3972.6,0.6479]
[1761685615173,17.28106492,3973.5,3972.6,0.1926]
[1761685615512,2.51692632,3973.1,3972.3,0.1256]
[1761685615676,2.51692632,3973.1,3972.3,2.64301719]
[1761685616005,2.96572632,3973.1,3972.3,0.1256]
[1761685616203,1.5552,3973.4,3972.3,0.1256]
[1761685616204,4.07193989,3973.4,3972.4,2.51730988]
[1761685616505,2.51692632,3973.1,3972.5,2.51730141]
[1761685616710,2.51692632,3973.1,3972.4,2.51734889]
[1761685617516,4.92643032,3973.1,3972.3,0.1256]
[1761685617804,4.52092632,3973.1,3972.3,0.1926]
[1761685618007,4.52092632,3973.1,3972.6,0.002]
[1761685618304,6.36612632,3973.1,3972.6,0.002]
[1761685619277,4.07212632,3973.1,3972.6,0.002]
[1761685621008,4.52092632,3973.1,3972.6,0.002]
[1761685622013,4.07212632,3973.1,3972.6,0.002]
[1761685622195,4.52092632,3973.1,3972.6,0.002]
[1761685622710,6.81492632,3973.1,3972.6,0.002]
[1761685623747,0.4488,3973.4,3972.6,0.002]
[1761685623905,2.51692632,3973.1,3972.6,0.002]
[1761685625274,2.94652632,3973.1,3972.6,0.002]
[1761685626537,4.17018968,3973.0,3972.6,0.002]
[1761685627552,4.59978968,3973.0,3972.6,0.002]
[1761685628027,4.17018968,3973.0,3972.6,0.002]
[1761685628611,19.9923586,3973.0,3972.6,0.002]
[1761685628811,4.07237975,3972.7,3972.6,0.002]
[1761685629029,6.42257975,3972.7,3972.6,0.002]
[1761685629235,6.85217975,3972.7,3972.6,0.002]
[1761685629624,6.42257975,3972.7,3972.6,0.002]
[1761685629841,4.12857975,3972.7,3972.6,0.002]
[1761685630154,6.85607975,3972.7,3972.6,0.002]
[1761685633260,0.405504,3972.0,3970.7,0.1921]
[1761685633472,15.21056492,3971.6,3970.7,0.1921]
[1761685633622,2.51804025,3971.4,3970.2,0.1921]
[1761685633965,4.07345992,3971.0,3970.2,0.1921]
[1761685634147,2.51847173,3970.7,3970.2,0.1921]
[1761685634328,14.98706492,3971.1,3970.2,0.6599]
[1761685634667,2.51843033,3970.8,3970.2,0.1921]
[1761685634874,2.51832753,3970.9,3970.2,0.1921]
[1761685635154,2.51859797,3970.5,3970.2,0.1921]
[1761685635334,2.51859797,3970.5,3970.1,0.002]
[1761685635335,2.294,3970.9,3970.1,0.002]
[1761685635534,1.5552,3970.5,3970.1,0.002]
[1761685636255,0.098,3973.0,3970.4,14.98706492]
[1761685636440,0.098,3973.0,3970.9,0.405504]
[1761685636656,0.098,3973.0,3971.9,2.51766408]
[1761685636864,1.6048,3972.9,3971.8,0.002]
[1761685637080,1.5552,3972.4,3971.8,0.002]
[1761685637362,1.5552,3972.2,3971.8,0.002]
[1761685637667,1.9953,3972.8,3971.8,0.002]
[1761685637668,2.294,3972.5,3971.8,0.002]
[1761685637968,1.5552,3972.4,3971.8,0.002]
[1761685638130,4.29398674,3971.9,3971.8,0.002]
[1761685638328,6.99349074,3971.9,3971.8,0.002]
[1761685638530,7.43359074,3971.9,3971.8,0.002]
[1761685638738,22.42065566,3971.9,3971.8,0.002]
[1761685640355,20.12665566,3971.9,3971.8,0.002]
[1761685640556,4.07288674,3971.9,3971.8,0.002]
[1761685640762,6.36688674,3971.9,3971.8,0.002]
[1761685641123,7.02808674,3971.9,3971.8,0.002]
[1761685641330,2.956544,3971.8,3970.7,0.1256]
[1761685641532,0.002,3971.7,3968.3,3.08636367]
[1761685641865,0.002,3971.7,3966.3,0.1946]
[1761685641866,2.52198226,3965.2,3964.2,4.34115029]
[1761685642067,0.13160835,3966.3,3963.0,0.00553847]
[1761685642068,26.639884,3964.1,3963.5,5.56392538]
[1761685642286,8.3578499,3963.3,3963.0,0.00553847]
[1761685642602,2.88785659,3963.1,3960.1,0.2214]
[1761685642730,14.98706492,3960.3,3960.1,0.2055465]
[1761685643039,0.1903,3960.2,3960.0,1.365465]
[1761685643229,0.5277951,3960.1,3959.3,2.33380942]
[1761685643428,15.20986492,3959.4,3955.7,2.644]
[1761685643644,15.20986492,3959.4,3956.6,2.52742253]
[1761685643645,7.031952,3956.7,3956.6,2.52742253]
[1761685643962,5.0542155,3956.7,3955.5,4.18216253]
[1761685644266,5.0542155,3956.7,3956.5,2.67274903]
[1761685644431,5.0542155,3956.7,3955.5,4.18216253]
[1761685644627,5.0542155,3956.7,3954.3,2.5288359]
[1761685644628,14.98706492,3955.6,3954.3,2.5288359]
[1761685644886,0.2228,3956.3,3953.7,0.90388528]
[1761685645094,0.2228,3957.5,3953.9,14.98706492]
[1761685645387,0.2228,3957.5,3953.8,2.8944]
[1761685645388,14.98706492,3956.7,3953.8,0.2214]
[1761685645532,14.98706492,3956.7,3952.4,0.75882129]
[1761685645533,2.965068,3955.3,3952.4,0.75882129]
[1761685645731,8.388074,3954.7,3952.6,0.3678]
[1761685645931,0.2228,3955.2,3952.6,0.3678]
[1761685646172,2.705,3955.1,3952.7,2.05]
[1761685646327,2.712,3955.0,3952.3,0.2214]
[1761685646665,3.798619,3954.8,3952.3,0.2214]
[1761685646839,0.2228,3956.2,3952.3,0.2214]
[1761685647040,14.98706492,3956.0,3952.5,17.03706492]
[1761685647251,15.03706492,3955.3,3952.4,2.05]
[1761685647438,2.711,3955.9,3952.4,2.05]
[1761685647439,0.05,3955.7,3952.4,2.05]
[1761685647823,2.9,3955.9,3952.7,12.37634586]
[1761685648094,0.05,3957.4,3955.6,0.1225]
[1761685648440,0.05,3957.9,3955.7,0.4678]
[1761685648682,0.05,3959.0,3955.7,0.4678]
[1761685648831,0.05,3958.5,3958.3,0.2214]
[1761685649030,0.05,3958.5,3957.6,0.1822]
[1761685649031,0.05,3959.8,3957.9,0.4678]
[1761685649258,0.05,3959.8,3955.9,2.74924257]
[1761685649259,24.589884,3959.8,3955.9,0.2214]
[1761685649462,0.05,3959.1,3955.9,0.6892]
[1761685649782,2.52737766,3956.7,3955.6,0.1225]
[1761685650064,2.723,3957.2,3955.6,0.1225]
[1761685650268,3.812177,3956.9,3954.9,2.723]
[1761685650474,0.05,3958.1,3955.0,0.4678]
[1761685650680,2.721,3958.3,3955.1,0.31908]
[1761685650832,12.37634586,3959.2,3955.5,2.52810093]
[1761685650833,2.5264639,3958.2,3955.5,2.52810093]
[1761685651031,2.72,3958.7,3955.7,2.52796989]
[1761685651356,2.72,3958.7,3955.2,0.4678]
[1761685651357,0.1256,3957.3,3956.7,0.1256]
[1761685651577,2.52708211,3957.2,3956.2,2.721]
[1761685651779,1.5552,3957.0,3955.3,0.4678]
[1761685651977,0.25270821,3957.2,3955.3,0.4678]
[1761685651978,1.80790821,3957.2,3955.3,0.4678]
[1761685652181,0.00080001,3956.9,3955.3,2.99603604]
[1761685652382,2.52803181,3956.9,3955.3,0.4678]
[1761685652691,4.08265332,3956.6,3954.2,0.1822]
[1761685652891,0.00080001,3956.5,3954.3,0.4678]
[1761685653104,1.5552,3956.3,3954.3,0.4678]
[1761685653258,1.5552,3956.0,3953.5,0.4678]
[1761685653453,2.5292344,3953.8,3952.6,0.4678]
[1761685653707,0.00080001,3953.7,3952.6,0.4678]
[1761685653860,1.5552,3953.5,3951.5,0.1225]
[1761685654058,0.00080001,3953.4,3952.1,3.1868]
[1761685654275,0.00080001,3953.4,3952.2,0.32995709]
[1761685654470,0.00080001,3953.4,3951.5,0.1225]
[1761685654669,2.52953228,3953.3,3951.5,0.1225]
[1761685654892,2.52966026,3953.1,3951.5,0.1225]
[1761685655098,0.00080001,3953.0,3951.4,0.00252525]
[1761685655337,0.1433,3952.1,3948.6,0.02815881]
[1761685655485,0.222,3950.1,3948.6,0.02815881]
[1761685655815,0.00080001,3950.0,3948.7,0.4678]
[1761685656627,0.6629,3949.9,3948.6,0.02815881]
[1761685656915,1.5552,3949.7,3948.6,0.02815881]
[1761685657138,2.75180001,3949.8,3947.9,4.31301653]
[1761685657139,2.49932,3949.5,3947.9,4.31117534]
[1761685657273,1.5552,3948.0,3947.9,4.31117534]
[1761685657475,1.5552,3947.6,3943.4,0.02535]
[1761685657683,1.5552,3947.6,3942.1,0.07184343]
[1761685657684,2.53472574,3945.2,3942.1,0.06931818]
[1761685657891,4.26897782,3941.7,3939.9,0.4678]
[1761685658085,4.26897782,3941.7,3939.0,0.0025255]
[1761685658086,0.1543,3941.1,3939.0,0.0025255]
[1761685658394,0.1543,3941.1,3936.4,5.0298761]
[1761685658395,3.22728504,3937.5,3936.4,2.60929751]
[1761685658598,0.2228,3938.6,3934.3,0.4678]
[1761685658599,4.82954778,3935.7,3934.3,0.4678]
[1761685658828,4.82954778,3935.6,3933.9,0.0451]
[1761685659017,4.82954778,3934.9,3932.8,0.4678]
[1761685659234,4.82954778,3935.5,3932.9,0.50425245]
[1761685659493,0.42800509,3936.5,3933.8,2.5420345]
[1761685659828,0.09999999,3937.2,3933.1,3.923297]
[1761685660126,2.56601034,3937.3,3933.5,1.24419424]
[1761685660329,2.56601034,3938.3,3937.2,0.0451]
[1761685660495,0.32,3938.3,3937.2,0.0451]
[1761685660701,2.56601034,3939.0,3937.2,0.5015]
[1761685660902,2.56601034,3939.3,3937.2,0.5015]
[1761685661139,2.66601033,3939.0,3937.2,0.5015]
[1761685661335,2.56601034,3936.9,3935.5,0.2141]
[1761685661551,2.20895234,3935.2,3933.3,0.4564]
[1761685661712,2.56601034,3935.6,3933.7,1.403]
[1761685662038,2.56601034,3935.5,3933.7,1.403]
[1761685662336,2.56601034,3934.5,3932.6,4.57472452]
[1761685662506,0.09999999,3934.3,3932.7,0.45747245]
[1761685662708,0.0632,3937.2,3932.7,0.45747245]
[1761685662709,2.56601034,3935.5,3932.7,0.45747245]
[1761685663039,0.05,3936.6,3932.9,1.5552]
[1761685663213,2.566011,3937.0,3933.0,1.266]
[1761685663415,2.566011,3937.1,3934.4,1.5552]
[1761685663736,0.0132,3937.2,3937.0,2.53994691]
[1761685663897,0.09999999,3939.6,3937.2,1.20418711]
[1761685664099,2.091611,3938.6,3937.4,1.21361663]
[1761685664299,0.32943301,3941.1,3936.0,1.21535736]
[1761685664300,3.036607,3938.4,3936.0,1.21535736]
[1761685664555,0.6728,3938.5,3935.5,2.912]
[1761685664698,0.6728,3938.5,3935.6,1.8464]
[1761685664899,0.6728,3938.5,3935.6,0.2912]
[1761685665100,0.4562,3938.4,3935.7,2.916]
[1761685665354,0.4562,3938.4,3935.5,2.914]
[1761685665510,0.6728,3939.2,3935.9,1.5552]
[1761685665709,0.6728,3939.2,3937.7,2.53953635]
[1761685665940,0.1543,3941.1,3937.4,1.5552]
[1761685666244,0.4562,3941.0,3939.3,2.53849754]
[1761685666547,0.4562,3941.0,3937.5,0.44682]
[1761685666548,10.478491,3940.9,3937.5,0.44682]
[1761685666699,0.4562,3940.8,3939.1,2.53862206]
[1761685666899,0.4562,3940.8,3937.5,0.44682]
[1761685666900,0.4562,3940.8,3938.8,2.53884431]
[1761685667098,12.44141105,3944.3,3937.5,0.44682]
[1761685667099,0.4562,3941.8,3938.9,3.45928443]
[1761685667339,5.770115,3941.7,3938.9,0.54528443]
[1761685667637,0.5062,3941.8,3937.5,0.44682]
[1761685667638,0.05,3940.3,3937.5,0.44682]
[1761685667844,0.12746339,3942.4,3936.5,2.915]
[1761685667845,2.95,3941.5,3936.5,2.915]
[1761685668010,2.9,3941.5,3936.7,2.569599]
[1761685668203,0.4562,3942.8,3939.8,1.5552]
[1761685668398,0.4562,3942.8,3939.9,2.921]
[1761685668600,2.157,3943.5,3939.9,0.003]
[1761685668820,0.26102,3943.4,3940.0,2.53807106]
[1761685669041,0.05,3943.8,3939.8,2.5381999]
[1761685669255,0.05,3943.8,3942.0,2.53677471]
[1761685669413,0.05,3943.8,3939.9,1.724]
[1761685669414,0.1847,3944.0,3942.6,2.53633585]
[1761685669747,2.056995,3943.9,3941.8,2.53690307]
[1761685669899,4.220107,3943.7,3940.9,2.92]
[1761685670099,4.220107,3943.7,3926.8,0.071]
[1761685670100,0.05,3942.9,3938.4,0.003]
[1761685670380,0.2241695,3943.8,3938.5,1.725]
[1761685670381,1.5552,3942.1,3938.5,1.725]
[1761685670650,2.53610436,3943.1,3938.5,1.725]
[1761685670651,0.4562,3942.0,3938.6,0.003]
[1761685670943,1.5552,3941.8,3938.6,0.003]
[1761685671151,0.6817337,3941.7,3940.4,2.53780968]
[1761685671317,0.4562,3941.9,3940.4,2.5377613]
[1761685671519,0.4562,3942.8,3940.0,2.918]
[1761685671707,0.4562,3942.8,3939.6,0.003]
[1761685671708,0.1847,3944.0,3940.2,0.405504]
[1761685671902,0.1264,3943.0,3939.6,0.003]
[1761685672144,0.4562,3943.9,3940.3,0.405504]
[1761685672341,0.4562,3943.9,3940.5,0.405504]
[1761685672527,0.4562,3943.7,3940.2,0.51326378]
[1761685672704,0.4562,3943.7,3939.9,0.003]
[1761685672705,2.186946,3943.6,3940.3,2.919]
[1761685672904,3.273477,3943.6,3940.4,2.53781341]
[1761685673217,0.4562,3943.7,3941.0,2.53742459]
[1761685673218,0.4562,3943.5,3941.0,2.53742459]
[1761685673403,4.126117,3943.4,3941.0,0.25374246]
[1761685673604,2.921333,3943.4,3940.2,2.918]
[1761685673832,0.4562,3943.5,3940.3,0.408504]
[1761685674013,0.4562,3943.5,3941.0,0.405504]
[1761685674227,0.4562,3943.5,3940.4,2.54078646]
[1761685674460,0.4562,3943.5,3940.5,0.405504]
[1761685674766,2.53633807,3942.7,3940.7,2.53756029]
[1761685674911,0.405504,3942.5,3939.2,2.033]
[1761685675259,0.25363381,3942.6,3939.3,0.003]
[1761685675406,0.1847,3944.0,3939.4,2.53845763]
[1761685675604,0.4562,3943.8,3939.8,0.405504]
[1761685675904,0.6728,3944.8,3941.9,2.53684771]
[1761685676105,0.6728,3944.8,3942.1,0.405504]
[1761685676307,0.4562,3945.3,3942.3,0.405504]
[1761685676533,0.6728,3945.3,3942.3,0.405504]
[1761685676718,0.6728,3945.3,3942.5,0.405504]
[1761685676923,0.4562,3946.1,3943.2,0.405504]
[1761685677119,0.4562,3946.1,3942.2,0.87597641]
[1761685677120,0.4562,3946.1,3943.4,0.405504]
[1761685677329,0.4562,3946.1,3943.1,0.003]
[1761685677517,0.4562,3946.1,3943.9,0.405504]
[1761685677707,0.2166,3946.8,3943.1,0.003]
[1761685677918,0.05,3945.7,3941.8,2.312]
[1761685678119,6.492349,3946.0,3942.6,2.53639011]
[1761685678471,11.844076,3945.4,3941.9,0.2342]
[1761685678654,0.405504,3945.6,3943.5,2.53581811]
[1761685678872,0.2166,3945.3,3942.0,0.003]
[1761685679168,0.2166,3945.3,3942.2,0.405504]
[1761685679382,0.2166,3945.3,3942.1,2.925]
[1761685679383,0.2166,3945.3,3943.9,2.53550238]
[1761685679524,0.0666,3945.3,3944.3,2.53528143]
[1761685679853,0.0666,3945.3,3942.4,2.53652597]
[1761685679854,1.5552,3944.8,3942.6,2.92]
[1761685680060,0.4562,3945.2,3942.7,2.53633296]
[1761685680280,1.5552,3945.8,3942.6,2.92]
[1761685680455,0.4562,3945.1,3942.6,3.26060504]
[1761685680825,0.4562,3945.1,3941.3,0.153]
[1761685680826,2.53593925,3943.4,3941.3,0.153]
[1761685681125,2.53593925,3943.4,3940.5,2.53769363]
[1761685681126,2.5353041,3944.3,3942.1,2.53670264]
[1761685681481,2.5353041,3944.3,3940.6,2.53768461]
[1761685681482,1.5552,3944.3,3942.2,2.918]
[1761685681643,0.4562,3944.5,3942.3,2.918]
[1761685681860,0.4562,3945.2,3943.7,2.53566034]
[1761685682081,0.2666,3946.8,3942.4,2.919]
[1761685682262,0.2166,3946.8,3943.0,0.405504]
[1761685682594,0.1264,3946.2,3943.3,0.405504]
[1761685682805,0.4562,3947.6,3945.8,2.53430749]
[1761685683010,0.6728,3947.4,3945.8,2.917]
[1761685683298,0.4562,3948.7,3946.4,0.1264]
[1761685683511,0.1264,3948.0,3947.4,0.1264]
[1761685683800,2.5315162,3950.3,3947.4,2.915]
[1761685684017,0.6728,3949.4,3947.4,2.915]
[1761685684332,0.6728,3949.4,3945.5,1.5552]
[1761685684333,0.2166,3947.5,3943.6,0.4564]
[1761685684600,2.9,3949.1,3944.3,0.4564]
[1761685684797,5.421534,3948.9,3944.5,1.5552]
[1761685685089,0.4562,3948.8,3944.7,0.405504]
[1761685685251,0.4562,3949.4,3944.8,0.405504]
[1761685685452,0.4572,3950.1,3945.1,1.5552]
[1761685685684,2.53164556,3950.0,3945.3,2.53466149]
[1761685685902,0.32554456,3949.9,3945.4,1.04770615]
[1761685686077,0.001,3950.1,3947.0,0.405504]
[1761685686282,0.001,3950.1,3947.6,2.53314359]
[1761685686494,0.001,3950.1,3949.1,2.53221193]
[1761685686809,0.001,3950.1,3949.2,2.919]
[1761685687165,0.001,3950.1,3950.0,2.53164556]
[1761685687482,0.001,3950.1,3949.2,2.919]
[1761685688281,0.001,3950.1,3949.3,2.53209311]
[1761685688455,0.001,3950.1,3949.2,2.919]
[1761685688667,0.001,3950.1,3949.3,2.53203679]
[1761685688994,0.001,3950.1,3949.2,2.919]
[1761685689162,0.001,3950.1,3948.7,0.4336]
[1761685689492,0.001,3950.1,3950.0,2.53164556]
[1761685689700,0.001,3950.1,3950.0,5.88314556]
[1761685690954,0.001,3950.1,3950.0,6.28864956]
[1761685691155,0.001,3950.5,3950.4,2.53138922]
[1761685691461,0.4681,3953.8,3950.2,2.53148373]
[1761685691462,0.4681,3953.8,3950.3,2.5314533]
[1761685691660,0.4681,3953.6,3950.6,2.53126107]
[1761685691861,0.001,3950.9,3950.8,2.53113293]
[1761685692398,0.001,3950.9,3950.8,2.97563293]